fUSD/lending_fUSD_20250201
["ID","MTS","AMOUNT","RATE_DAILY","PERIOD"]
[351218066,1738441832417,-500.0,0.0001578,2]
[351218067,1738441832426,-26883.9255,0.0001578,2]
[351218069,1738441832435,-1000.0,0.0001578,2]
[351218071,1738441832444,-1300.0,0.00015826,2]
[351218073,1738441832453,-600.0,0.00015826,2]
[351218074,1738441832463,-2428.3879,0.00015892,2]
[351218076,1738441832472,-260.6273992,0.00015899,2]
[351218078,1738441832481,-793.5007,0.000159,2]
[351218080,1738441832490,-1564.125,0.000159,2]
[351218082,1738441832499,-1484.58955188,0.000159,2]
[351218084,1738441832508,-5619.95762573,0.000159,2]
[351218086,1738441832517,-166.31838758,0.000159,2]
[351218088,1738441832530,-1427.0,0.000159,2]
[351218090,1738441832539,-281.67849721,0.00015913,2]
[351218092,1738441832548,-260.6273992,0.00015919,2]
[351218094,1738441832558,-200.0,0.0001592,2]
[351218096,1738441832572,-6002.77169967,0.00015942,2]
[351218098,1738441832581,-333.35224546,0.00015945,2]
[351218100,1738441832590,-1484.58955187,0.00015949,2]
[351218102,1738441832600,-405.94077484,0.0001595,2]
[351218105,1738441832613,-291.109999,0.0001595,2]
[351218109,1738441832645,-413.21193929,0.0001595,2]
[351218111,1738441832656,-4892.50898654,0.0001595,2]
[351218113,1738441832666,-6002.77169967,0.00015953,2]
[351218115,1738441832675,-260.6273992,0.00015965,2]
[351218117,1738441832684,-6002.77169967,0.00015985,2]
[351218119,1738441832693,-25779.57153597,0.00015992,2]
[351218121,1738441832702,-260.6273992,0.00015995,2]
[351218123,1738441832712,-1484.58955187,0.00015997,2]
[351218125,1738441832722,-333.35224546,0.00016,2]
[351218127,1738441832731,-62994.75783134,0.00016,2]
[351218129,1738441832743,-49621.30201054,0.00016,2]
[351218131,1738441832755,-74587.16905812,0.00016,2]
[351218133,1738441832764,-1000.0,0.00016,2]
[351218135,1738441832778,-1000.0,0.00016,2]
[351218137,1738441832787,-1000.0,0.00016,2]
[351218139,1738441832797,-1016.0,0.00016,2]
[351218141,1738441832807,-21894.36402344,0.00016,4]
[351218143,1738441832816,-1000.0,0.00016,2]
[351218145,1738441832826,-1000.0,0.00016,3]
[351218147,1738441832835,-1000.0,0.00016,3]
[351218149,1738441832844,-1000.0,0.00016,2]
[351218151,1738441832854,-1001.0,0.00016,2]
[351218153,1738441832863,-25779.57153595,0.0001603,2]
[351218155,1738441832872,-1484.58955187,0.00016046,2]
[351218157,1738441832881,-500.0,0.00016063,2]
[351218159,1738441832891,-25779.57153595,0.00016069,2]
[351218161,1738441832900,-5619.9576257,0.00016072,2]
[351218163,1738441832910,-333.35224546,0.00016082,2]
[351218165,1738441832919,-5000.0,0.00016088,2]
[351218167,1738441832928,-1054.40362489,0.00016092,2]
[351218169,1738441832937,-88841.14892338,0.00016092,2]
[351218171,1738441832947,-151.95695418,0.00016092,2]
[351218173,1738441832956,-194.77048296,0.00016092,2]
[351218175,1738441832965,-1484.58955187,0.00016095,2]
[351218177,1738441832975,-4770.58340051,0.000161,2]
[351218178,1738441832984,-155.69051876,0.000161,2]
[351218180,1738441832993,-158.94068353,0.000161,2]
[351218182,1738441833002,-25779.57153595,0.00016107,2]
[351218184,1738441833011,-1866.0,0.00016138,2]
[351218186,1738441833022,-1259.221,0.00016138,2]
[351218188,1738441833032,-907.0,0.00016138,2]
[351218190,1738441833041,-782.0,0.00016138,2]
[351218192,1738441833051,-2950.0,0.00016138,2]
[351218194,1738441833061,-538.0,0.00016138,2]
[351218196,1738441833070,-1078.141,0.00016138,2]
[351218198,1738441833079,-2022.0,0.00016138,2]
[351218200,1738441833089,-1271.0,0.00016138,2]
[351218202,1738441833098,-157.159,0.00016138,2]
[351218203,1738441833108,-219.691,0.00016138,2]
[351218205,1738441833117,-3909.0,0.00016138,2]
[351218207,1738441833127,-200.0,0.0001614,2]
[351218209,1738441833136,-1484.58955187,0.00016143,2]
[351218211,1738441833146,-25779.57153595,0.00016146,2]
[351218212,1738441833156,-333.35224546,0.00016164,2]
[351218214,1738441833165,-2171.6077701,0.00016181,2]
[351218216,1738441833174,-4581.2835416,0.00016181,2]
[351218218,1738441833183,-1983.0798422,0.00016181,2]
[351218220,1738441833193,-25779.57153595,0.00016184,2]
[351218222,1738441833202,-3207.764966,0.00016188,2]
[351218224,1738441833212,-7577.314473,0.00016188,2]
[351218226,1738441833222,-8571.5225341,0.00016189,2]
[351218228,1738441833231,-2479.9878437,0.00016189,2]
[351218229,1738441833240,-5231.8506353,0.00016189,2]
[351218230,1738441833250,-2264.6879282,0.00016189,2]
[351218231,1738441833260,-182181.76565105,0.00016192,2]
[351218232,1738441833274,-163960.19167007,0.00016192,2]
[351218233,1738441833286,-4328.49783827,0.00016192,2]
[351218234,1738441833310,-1801.31738601,0.00016192,2]
[351218235,1738441833324,-324.00694575,0.00016192,2]
[351218236,1738441833336,-579.1131891,0.00016192,2]
[351218237,1738441833348,-487.25,0.00016192,2]
[351218238,1738441833359,-2009.62986515,0.00016192,2]
[351218239,1738441833371,-2063.52084559,0.00016192,2]
[351218241,1738441833383,-7960.91580602,0.00016192,2]
[351218243,1738441833394,-3342.09999,0.00016192,2]
[351218245,1738441833406,-436.50000608,0.00016192,2]
[351218247,1738441833418,-323.91771611,0.00016192,2]
[351218250,1738441833435,-941.96454601,0.00016192,2]
[351218664,1738441837617,-316.2698799,0.00014443,2]
[351218666,1738441837627,-548.77021225,0.00014443,2]
[351218668,1738441837640,-1461.96990785,0.00014443,2]
[351218669,1738441837649,-393.72889637,0.00016092,2]
[351218670,1738441837660,-318.19304419,0.00016092,2]
[351218671,1738441837671,-314.99689138,0.00016092,2]
[351218672,1738441837681,-3635.17547376,0.00016092,2]
[351218673,1738441837692,-619.36964564,0.00016092,2]
[351218674,1738441837701,-366.56165416,0.00016138,2]
[351218675,1738441837713,-740.43834584,0.00016138,2]
[351218676,1738441837722,-49459.56165416,0.00016192,2]
[351218677,1738441837733,-20405.87349111,0.00016192,2]
[351218678,1738441837750,-481.93479422,0.00016192,2]
[351218692,1738441837917,-317.21379945,0.00016192,2]
[351218697,1738441837951,-10453.75048581,0.00016192,2]
[351218699,1738441837962,-4849.99996427,0.00016192,2]
[351218701,1738441837974,-8277.934682,0.00016192,2]
[351218705,1738441838002,-13136.5,0.00016192,2]
[351218707,1738441838012,-341.24596483,0.00016192,2]
[351218710,1738441838023,-552.42325622,0.00016192,2]
[351218712,1738441838036,-336.01844849,0.00016192,2]
[351218714,1738441838047,-8390.41828939,0.00016192,2]
[351218716,1738441838058,-333.04430478,0.00016192,2]
[351218718,1738441838069,-18435.39607455,0.00016192,2]
[351218720,1738441838080,-1801.30140594,0.00016192,2]
[351218723,1738441838090,-316.73,0.00016192,2]
[351218725,1738441838101,-941.57868834,0.00016192,2]
[351218727,1738441838116,-6703.99445292,0.00016192,2]
[351218729,1738441838126,-2939.02903934,0.00016192,2]
[351218732,1738441838137,-10132.03137067,0.00016192,2]
[351218929,1738441839632,-1309.2469046,0.00016192,2]
[351218932,1738441839643,-35039.9999968,0.00016192,2]
[351218935,1738441839656,-983.21754107,0.00016192,2]
[351218939,1738441839668,-2467.30921759,0.00016192,2]
[351218943,1738441839679,-5376.4572722,0.00016192,2]
[351218950,1738441839708,-303446.03627901,0.00016192,2]
[351218953,1738441839717,-7747.72724991,0.00016192,2]
[351218956,1738441839726,-153.0,0.00016192,2]
[351218959,1738441839735,-153.0,0.00016192,2]
[351218962,1738441839744,-153.0,0.00016192,2]
[351218965,1738441839753,-2379534.94940629,0.00016192,2]
[351218968,1738441839765,-6336.93060007,0.00016192,2]
[351218982,1738441839881,-11000.0,0.00016192,2]
[351219281,1738441842691,-287.4507816,0.00016192,2]
[351219293,1738441842800,-527.15468926,0.00016192,2]
[351219542,1738441845668,-1173.2185088,0.00016192,2]
[351219543,1738441845678,-3620.80825427,0.00016192,2]
[351219544,1738441845690,-939.70572982,0.00016192,2]
[351219545,1738441845701,-254.82632,0.00016192,2]
[351219546,1738441845712,-973.91200023,0.00016192,2]
[351219547,1738441845790,-705504.34861216,0.00016192,2]
[351219548,1738441845842,-241686.16773959,0.00016192,2]
[351219549,1738441845853,-101300.0,0.00016192,2]
[351219550,1738441845901,-495.03598557,0.00016192,2]
[351219551,1738441845912,-270.3335,0.00016192,2]
[351219552,1738441845924,-1957.704,0.00016192,2]
[351219553,1738441845938,-932.97163237,0.00016192,2]
[351219554,1738441845950,-779.80335248,0.00016192,2]
[351219555,1738441845961,-944.73689497,0.00016192,2]
[351219556,1738441845984,-1901.1793104,0.00016192,2]
[351219557,1738441845995,-448.84868937,0.00016192,2]
[351219558,1738441846006,-1364.749998,0.00016192,2]
[351219651,1738441920248,279.62,0.00016658,30]
[351219652,1738441984822,162.57,0.00010137,2]
[351219654,1738441994504,2000.0,0.00023,120]
[351219656,1738442592341,2000.0,0.00023,120]
[351219657,1738442602986,151.0,0.00023,120]
[351219659,1738442949131,220.99,0.00010137,2]
[351219675,1738443031877,-603.94,0.00012789,2]
[351219676,1738443031887,-150.0,0.00012792,2]
[351219677,1738443031897,-191.81548502,0.00012795,2]
[351219678,1738443031906,-191.81548502,0.000129,2]
[351219679,1738443031915,-550.0,0.00013,2]
[351219680,1738443031925,-872.6452512,0.00013534,2]
[351219681,1738443031937,-150.0,0.00014068,2]
[351219682,1738443031948,-150.0,0.00014068,2]
[351219683,1738443031957,-150.0,0.00014219,2]
[351219684,1738443031967,-106.71764753,0.0001451,2]
[351219685,1738443032044,-710.20578137,0.0001451,2]
[351219686,1738443032104,-183.0765711,0.0001451,2]
[351219687,1738443032114,-300.0,0.00014526,2]
[351219688,1738443032123,-15715.38,0.00014527,2]
[351219689,1738443032133,-174.12,0.00014534,2]
[351219690,1738443032143,-500.0,0.00014534,2]
[351219691,1738443032152,-907.61,0.00014594,2]
[351219692,1738443032161,-4169.64,0.00014672,2]
[351219693,1738443032170,-646.31,0.00014764,2]
[351219694,1738443032179,-397.85,0.00014784,2]
[351219695,1738443032188,-241.73,0.00014801,2]
[351219696,1738443032198,-171.52,0.00014829,2]
[351219697,1738443032207,-156.62,0.00014964,2]
[351219698,1738443032217,-156.62,0.00014979,2]
[351219699,1738443032227,-286.13,0.0001499,2]
[351219700,1738443032236,-156.62,0.00014994,2]
[351219701,1738443032246,-156.62,0.00015009,2]
[351219702,1738443032255,-150.0,0.00015009,2]
[351219703,1738443032264,-156.62,0.00015024,2]
[351219704,1738443032272,-156.62,0.00015038,2]
[351219705,1738443032282,-234.73161078,0.00015053,2]
[351219714,1738443032352,-369.20838922,0.00015053,2]
[351219716,1738443032362,-136.29661078,0.00015142,2]
[351219718,1738443032374,-1528.68338922,0.00015142,2]
[351219720,1738443032384,-213.67,0.00015267,2]
[351219722,1738443032394,-296.7182967,0.00015347,2]
[351219724,1738443032404,-1000.0,0.00015657,2]
[351219726,1738443032413,-500.0,0.00015658,2]
[351219728,1738443032423,-500.0,0.00015658,2]
[351219730,1738443032432,-500.0,0.00015658,2]
[351219732,1738443032442,-500.0,0.00015658,2]
[351219734,1738443032452,-500.0,0.00015658,2]
[351219736,1738443032461,-500.0,0.00015658,2]
[351219738,1738443032470,-500.0,0.00015658,2]
[351219740,1738443032480,-500.0,0.00015658,2]
[351219742,1738443032489,-612.48,0.00015658,2]
[351219744,1738443032498,-152.83,0.00015788,2]
[351219746,1738443032508,-1000.0,0.000158,2]
[351219748,1738443032517,-600.0,0.00015826,2]
[351219750,1738443032527,-1400.0,0.00015826,2]
[351219752,1738443032535,-5899.9856,0.000159,2]
[351219754,1738443032544,-420.0,0.00015905,2]
[351219756,1738443032554,-150.0,0.00015994,2]
[351219757,1738443032563,-2289.04179218,0.00016,2]
[351219760,1738443032572,-1372.64004705,0.00016,2]
[351219777,1738443032582,-500.0,0.00016063,2]
[351219779,1738443032740,-1933.869,0.00016067,2]
[351219781,1738443032750,-593.83582082,0.0001609,2]
[351219783,1738443032759,-2735.15141674,0.00016092,2]
[351219786,1738443032769,-159.94308906,0.000161,2]
[351219787,1738443032778,-1994.6198,0.000161,2]
[351219789,1738443032787,-155.69051876,0.000161,2]
[351219791,1738443032796,-183.0,0.000161,2]
[351219793,1738443032805,-10311.82861438,0.000161,2]
[351219795,1738443032814,-29411.28,0.00016116,2]
[351219797,1738443032823,-154.400508,0.00016119,5]
[351219799,1738443032831,-593.83582074,0.00016124,2]
[351219801,1738443032840,-159.94308904,0.00016132,2]
[351219803,1738443032850,-10311.82861438,0.00016133,2]
[351219805,1738443032859,-2022.0,0.00016158,2]
[351219807,1738443032868,-1271.0,0.00016158,2]
[351219809,1738443032877,-637.82,0.00016158,2]
[351219811,1738443032887,-568.0,0.00016158,2]
[351219813,1738443032896,-1866.0,0.00016158,2]
[351219815,1738443032905,-2951.0,0.00016158,2]
[351219816,1738443032914,-782.0,0.00016158,2]
[351219818,1738443032924,-907.0,0.00016158,2]
[351219820,1738443032934,-1263.0,0.00016158,2]
[351219822,1738443032947,-538.0,0.00016158,2]
[351219824,1738443032957,-1271.104,0.00016158,2]
[351219827,1738443032967,-150.0,0.00016158,2]
[351219828,1738443032977,-3908.0,0.00016158,2]
[351219831,1738443032987,-593.83582074,0.00016159,2]
[351219832,1738443032996,-159.94308904,0.00016164,2]
[351219834,1738443033006,-10311.82861438,0.00016167,2]
[351219836,1738443033016,-500.0,0.00016173,2]
[351219838,1738443033027,-928.65,0.0001618,2]
[351219840,1738443033038,-11657.0715364,0.00016181,2]
[351219842,1738443033047,-3416.519138,0.00016181,2]
[351219843,1738443033056,-3119.9143446,0.00016181,2]
[351219845,1738443033066,-7207.5828386,0.00016181,2]
[351219847,1738443033075,-2904.5977536,0.00016181,2]
[351219849,1738443033085,-9942.7876383,0.00016189,2]
[351219851,1738443033095,-2916.8282902,0.00016189,2]
[351219853,1738443033104,-2663.6041116,0.00016189,2]
[351219855,1738443033114,-6153.4212684,0.00016189,2]
[351219857,1738443033124,-2479.7791428,0.00016189,2]
[351219859,1738443033134,-35566.12313313,0.0001619,4]
[351219861,1738443033169,-58091.80527913,0.0001619,4]
[351219867,1738443037816,-371.1721367,0.0001619,4]
[351219868,1738443037871,-505.584324,0.0001619,4]
[351219869,1738443037889,-692.74999987,0.0001619,4]
[351219870,1738443037905,-628.96465952,0.0001619,4]
[351219871,1738443037922,-315.38916094,0.0001619,4]
[351219872,1738443037937,-3646.68200123,0.0001619,4]
[351219873,1738443037956,-1227.11084946,0.0001619,4]
[351219874,1738443037971,-3193.7463012,0.0001619,4]
[351220040,1738443039900,-506.11606052,0.0001619,4]
[351220042,1738443039912,-2087.91498332,0.0001619,4]
[351220047,1738443039956,-2024.07837793,0.0001619,4]
[351220052,1738443040017,-4046.0,0.0001619,4]
[351220064,1738443040125,-396.21290622,0.0001619,4]
[351220112,1738443040556,-35684.50328488,0.0001619,4]
[351220119,1738443040612,-476.28499998,0.0001619,4]
[351220121,1738443040623,-1961.56794,0.0001619,4]
[351220127,1738443040671,-8273.54240589,0.0001619,4]
[351220353,1738443042935,-1577.5,0.0001619,4]
[351220355,1738443042949,-1039.491424,0.0001619,4]
[351220361,1738443042994,-19293.65854443,0.0001619,4]
[351220363,1738443043003,-416.52,0.0001619,2]
[351220365,1738443043012,-416.52,0.0001619,2]
[351220367,1738443043024,-416.52,0.0001619,2]
[351220369,1738443043033,-416.52,0.0001619,2]
[351220371,1738443043042,-416.52,0.0001619,2]
[351220373,1738443043051,-416.52,0.0001619,2]
[351220375,1738443043061,-416.52,0.0001619,2]
[351220377,1738443043071,-416.52,0.0001619,2]
[351220379,1738443043080,-416.52,0.0001619,2]
[351220381,1738443043089,-416.52,0.0001619,2]
[351220383,1738443043098,-416.52,0.0001619,2]
[351220385,1738443043107,-416.52,0.0001619,2]
[351220387,1738443043117,-416.52,0.0001619,2]
[351220389,1738443043126,-416.52,0.0001619,2]
[351220391,1738443043135,-416.52,0.0001619,2]
[351220393,1738443043144,-416.52,0.0001619,2]
[351220395,1738443043153,-416.52,0.0001619,2]
[351220397,1738443043162,-416.52,0.0001619,2]
[351220399,1738443043171,-416.52,0.0001619,2]
[351220401,1738443043180,-416.52,0.0001619,2]
[351220403,1738443043190,-416.52,0.0001619,2]
[351220405,1738443043199,-416.52,0.0001619,2]
[351220407,1738443043207,-416.52,0.0001619,2]
[351220409,1738443043217,-416.52,0.0001619,2]
[351220411,1738443043226,-416.52,0.0001619,2]
[351220413,1738443043236,-416.52,0.0001619,2]
[351220415,1738443043245,-416.52,0.0001619,2]
[351220417,1738443043255,-416.52,0.0001619,2]
[351220419,1738443043265,-416.52,0.0001619,2]
[351220421,1738443043274,-416.52,0.0001619,2]
[351220423,1738443043284,-416.52,0.0001619,2]
[351220425,1738443043293,-416.52,0.0001619,2]
[351220427,1738443043302,-416.52,0.0001619,2]
[351220428,1738443043312,-416.52,0.0001619,2]
[351220429,1738443043322,-416.52,0.0001619,2]
[351220430,1738443043332,-416.52,0.0001619,2]
[351220431,1738443043343,-416.52,0.0001619,2]
[351220432,1738443043352,-416.52,0.0001619,2]
[351220433,1738443043362,-928.65,0.0001619,2]
[351220434,1738443043372,-1994.641,0.00016192,2]
[351220435,1738443043381,-165.081,0.00016192,2]
[351220436,1738443043390,-4000.0,0.00016192,2]
[351220437,1738443043400,-593.83582074,0.00016193,2]
[351220438,1738443043409,-159.94308904,0.00016196,2]
[351220440,1738443043418,-500.0,0.00016199,2]
[351220442,1738443043427,-300.0,0.00016199,2]
[351220444,1738443043437,-300.0,0.00016199,2]
[351220446,1738443043446,-300.0,0.00016199,2]
[351220448,1738443043455,-300.0,0.00016199,2]
[351220450,1738443043464,-300.0,0.00016199,2]
[351220452,1738443043473,-300.0,0.00016199,2]
[351220454,1738443043483,-666.0,0.00016199,2]
[351220455,1738443043492,-666.0,0.00016199,2]
[351220458,1738443043501,-300.0,0.00016199,2]
[351220460,1738443043510,-1092.0,0.000162,2]
[351220462,1738443043519,-154626.7103918,0.000162,2]
[351220467,1738443043558,-4325.99470946,0.000162,2]
[351220469,1738443043570,-2330.50377197,0.000162,2]
[351220490,1738443045832,-3861.66746015,0.000162,2]
[351220491,1738443045892,-2692.897606,0.000162,2]
[351220492,1738443045904,-728.3499875,0.000162,2]
[351220493,1738443046063,-1637.765266,0.000162,2]
[351220494,1738443046125,-310.64803831,0.000162,2]
[351220498,1738443192055,994.184011,0.00023,120]
[351220499,1738443326342,500.48889949,0.00023,120]
[351220501,1738443805190,213.78,0.00010137,2]
[351220504,1738443860999,1059.0,0.00012389,2]
[351220505,1738443990108,-550.0,0.00013,2]
[351220506,1738443990131,-1059.0,0.00013041,2]
[351220507,1738443990301,-559.24,0.00013111,2]
[351220508,1738443990324,-150.0,0.00013577,2]
[351220509,1738443990348,-300.0,0.00013726,2]
[351220510,1738443990373,-1923.91595417,0.00013727,2]
[351220516,1738444232122,-1059.0,0.00013728,2]
[351220517,1738444232132,-1059.0,0.0001445,2]
[351220518,1738444232142,-150.0,0.00014464,2]
[351220519,1738444232152,-150.0,0.00014551,2]
[351220520,1738444232161,-300.0,0.00014695,2]
[351220521,1738444232171,-430.97995,0.00014696,2]
[351220522,1738444232182,-1158.5934276,0.00014696,2]
[351220523,1738444232211,-1781.11803065,0.00014696,2]
[351220524,1738444232238,-261.0,0.00014696,2]
[351220525,1738444232314,-8263.24564795,0.00014696,2]
[351220526,1738444232325,-2649.54,0.00014696,2]
[351220527,1738444232336,-150.0,0.00014696,2]
[351220528,1738444232346,-500.0,0.00014741,2]
[351220529,1738444232356,-14823.01435205,0.00014814,2]
[351220530,1738444232373,-9013.21564795,0.00014814,2]
[351220531,1738444232383,-200.0,0.00014848,2]
[351220532,1738444232392,-1000.0,0.00014925,2]
[351220533,1738444232402,-250.0,0.00014991,2]
[351220534,1738444232411,-5861.32,0.00015023,2]
[351220535,1738444232422,-237.64,0.00015051,2]
[351220536,1738444232431,-322.97,0.00015051,2]
[351220537,1738444232442,-1059.0,0.00015173,2]
[351220538,1738444232453,-993.38,0.00015263,2]
[351220539,1738444232462,-596.92,0.00015263,2]
[351220540,1738444232471,-559.24,0.00015375,2]
[351220541,1738444232482,-203.54,0.00015678,2]
[351220542,1738444232491,-500.0,0.00015826,2]
[351220543,1738444232501,-1300.0,0.00015826,2]
[351220544,1738444232510,-1059.0,0.00015931,2]
[351220545,1738444232519,-3928.34228,0.0001604,2]
[351220546,1738444232528,-500.0,0.00016066,2]
[351220547,1738444232537,-420.0,0.00016087,2]
[351220548,1738444232546,-16963.6084,0.00016089,2]
[351220549,1738444232555,-4642.4352,0.000161,2]
[351220550,1738444232565,-2500.0,0.000161,2]
[351220551,1738444232576,-261.19436177,0.000161,2]
[351220552,1738444232586,-244.45041247,0.000161,2]
[351220553,1738444232595,-4292.9916,0.000161,2]
[351220554,1738444232604,-4362.0,0.000161,2]
[351220555,1738444232613,-152.17950909,0.000161,2]
[351220556,1738444232623,-356.30149248,0.000161,2]
[351220557,1738444232632,-500.0,0.000161,2]
[351220558,1738444232641,-500.0,0.000161,2]
[351220559,1738444232651,-7344.38766343,0.000161,2]
[351220560,1738444232660,-500.0,0.000161,2]
[351220561,1738444232670,-500.0,0.000161,2]
[351220562,1738444232679,-500.0,0.000161,2]
[351220563,1738444232688,-500.0,0.000161,2]
[351220564,1738444232698,-500.0,0.000161,2]
[351220565,1738444232708,-500.0,0.000161,2]
[351220566,1738444232718,-500.0,0.000161,2]
[351220567,1738444232726,-500.0,0.000161,2]
[351220568,1738444232736,-500.0,0.000161,2]
[351220569,1738444232745,-500.0,0.000161,2]
[351220570,1738444232754,-500.0,0.000161,2]
[351220571,1738444232764,-500.0,0.000161,2]
[351220572,1738444232774,-500.0,0.000161,2]
[351220573,1738444232784,-500.0,0.000161,2]
[351220574,1738444232794,-500.0,0.000161,2]
[351220575,1738444232803,-500.0,0.000161,2]
[351220576,1738444232813,-500.0,0.000161,2]
[351220577,1738444232825,-903.0,0.000161,2]
[351220578,1738444232834,-500.0,0.000161,2]
[351220579,1738444232843,-500.0,0.000161,2]
[351220580,1738444232853,-500.0,0.000161,2]
[351220581,1738444232863,-500.0,0.000161,2]
[351220582,1738444232873,-678.0,0.000161,2]
[351220583,1738444232882,-71074.69596169,0.000161,2]
[351220584,1738444232894,-356.30149244,0.00016133,2]
[351220585,1738444232903,-7344.38766334,0.00016133,2]
[351220586,1738444232913,-774.41,0.00016137,2]
[351220587,1738444232922,-416.31,0.00016137,2]
[351220588,1738444232932,-154.400508,0.00016147,2]
[351220589,1738444232942,-2018.0,0.00016158,2]
[351220590,1738444232951,-637.0,0.00016158,2]
[351220591,1738444232960,-1681.902,0.00016159,2]
[351220592,1738444232970,-165.08238686,0.00016159,2]
[351220593,1738444232981,-356.30149244,0.00016167,2]
[351220594,1738444232990,-7344.38766334,0.00016167,2]
[351220595,1738444232999,-500.0,0.00016173,2]
[351220596,1738444233009,-256.65,0.00016182,2]
[351220597,1738444233019,-256.65,0.00016182,2]
[351220598,1738444233029,-256.65,0.00016182,2]
[351220599,1738444233038,-256.65,0.00016182,2]
[351220600,1738444233048,-256.65,0.00016182,2]
[351220601,1738444233058,-256.65,0.00016182,2]
[351220602,1738444233068,-256.65,0.00016182,2]
[351220603,1738444233080,-256.65,0.00016182,2]
[351220604,1738444233090,-256.65,0.00016182,2]
[351220605,1738444233099,-256.65,0.00016182,2]
[351220606,1738444233109,-256.65,0.00016182,2]
[351220607,1738444233119,-256.65,0.00016182,2]
[351220608,1738444233129,-256.65,0.00016182,2]
[351220609,1738444233139,-256.65,0.00016182,2]
[351220610,1738444233149,-256.65,0.00016182,2]
[351220611,1738444233159,-256.65,0.00016182,2]
[351220612,1738444233168,-256.65,0.00016182,2]
[351220613,1738444233178,-256.65,0.00016182,2]
[351220614,1738444233188,-256.65,0.00016182,2]
[351220615,1738444233198,-256.65,0.00016182,2]
[351220616,1738444233208,-256.65,0.00016182,2]
[351220617,1738444233217,-256.65,0.00016182,2]
[351220618,1738444233227,-256.65,0.00016182,2]
[351220619,1738444233236,-256.65,0.00016182,2]
[351220620,1738444233246,-256.65,0.00016182,2]
[351220621,1738444233256,-256.65,0.00016182,2]
[351220622,1738444233265,-256.65,0.00016182,2]
[351220623,1738444233275,-256.65,0.00016182,2]
[351220624,1738444233440,-256.65,0.00016182,2]
[351220625,1738444233451,-256.65,0.00016182,2]
[351220626,1738444233461,-256.65,0.00016182,2]
[351220627,1738444233471,-256.65,0.00016182,2]
[351220628,1738444233480,-256.65,0.00016182,2]
[351220629,1738444233490,-256.65,0.00016182,2]
[351220630,1738444233500,-256.65,0.00016182,2]
[351220631,1738444233509,-256.65,0.00016182,2]
[351220632,1738444233519,-256.65,0.00016182,2]
[351220633,1738444233530,-256.65,0.00016182,2]
[351220634,1738444233540,-256.65,0.00016182,2]
[351220635,1738444233550,-256.65,0.00016182,2]
[351220636,1738444233560,-256.65,0.00016182,2]
[351220637,1738444233569,-256.65,0.00016182,2]
[351220638,1738444233578,-256.65,0.00016182,2]
[351220639,1738444233588,-256.65,0.00016182,2]
[351220640,1738444233597,-256.65,0.00016182,2]
[351220641,1738444233606,-256.65,0.00016182,2]
[351220642,1738444233616,-256.65,0.00016182,2]
[351220643,1738444233625,-256.65,0.00016182,2]
[351220644,1738444233634,-256.65,0.00016182,2]
[351220645,1738444233644,-256.65,0.00016182,2]
[351220646,1738444233653,-256.65,0.00016182,2]
[351220647,1738444233663,-256.65,0.00016182,2]
[351220648,1738444233672,-256.65,0.00016182,2]
[351220649,1738444233681,-256.65,0.00016182,2]
[351220650,1738444233691,-256.65,0.00016182,2]
[351220651,1738444233700,-256.65,0.00016182,2]
[351220652,1738444233709,-256.65,0.00016182,2]
[351220653,1738444233718,-256.65,0.00016182,2]
[351220654,1738444233728,-256.65,0.00016182,2]
[351220655,1738444233737,-256.65,0.00016182,2]
[351220656,1738444233746,-256.65,0.00016182,2]